Cogmind - Beta 13 @@@ ROGUE MODE // 2024.07.27 @ 23:31:39 Player: UberDoot Result: Destroyed by 8R-AWN with 8R-AWN's Boregun Performance ------------- Evolutions (1) 500 Regions Visited (5) 1000 Robots Destroyed (64) 320 Value Destroyed (1449) 1449 Prototype IDs (6) 120 Alien Tech Used (0) 0 Bonus (0) 0 TOTAL SCORE: 3389 Bonus ------- None Cogmind --------- Core Integrity 0/400 Matter 233/300 Energy 76/100 System Corruption 0% Temperature Cool (0) Movement Core (100) Ox1 Location -9/Exiles Parts ------- > --- POWER (1) -------- (None) > --- PROPULSION (3) --- (None) > --- UTILITY (2) ------ Heat Sink > --- WEAPON (3) ------- Beam Rifle > --- INVENTORY (5) ---- Heavy Ion Engine Peak State ------------ > --- POWER ------------ Light Nuclear Core > --- PROPULSION ------- Light Treads Light Treads Light Treads > --- UTILITY ---------- Heat Sink Huge Storage Unit > --- WEAPON ----------- Beam Rifle Beam Rifle Beam Rifle > --- INVENTORY -------- Ion Engine Light Nuclear Core Light Treads Wheel Wheel Heat Sink Heat Sink Large Matter Pod Visual Processing Unit Improved Terrain Scanner Terrain Scan Processor Targeting Computer Improved Targeting Computer Light Armor Plating Hacking Suite High-powered Tractor Beam Beam Rifle Beam Rifle Beam Rifle Light EM Pulse Cannon Particle Cannon Grenade Launcher Rocket Launcher Hammer [Rating: 18] Favorites ----------- Power Heavy Ion Engine Engine Heavy Ion Engine Power Core Light Nuclear Core Propulsion Light Treads Treads Light Treads Leg Aluminum Leg Utility Heat Sink Device Heat Sink Storage Huge Storage Unit Protection Light Armor Plating Weapon Beam Rifle Energy Gun Beam Rifle Ballistic Gun Assault Rifle Ballistic Cannon Light Cannon Launcher Rocket Launcher Impact Weapon Hammer Build | -11 -10 -10 -9 -9 -9 ------- Run | Yrd Mat Min Mat Min Exi Slots Evolved 2 | . . . 2 . . Power . | . . . . . . Propulsion 1 | . . . 1 . . Utility . | . . . . . . Weapon 1 | . . . 1 . . Parts Attached 56 | 8 12 1 18 4 13 Power 5 | 1 1 . 2 . 1 Engine 4 | 1 1 . 1 . 1 Core 1 | . . . 1 . . Reactor . | . . . . . . Propulsion 13 | 2 2 . 5 2 2 Treads 11 | . 2 . 5 2 2 Leg 2 | 2 . . . . . Wheel . | . . . . . . Hover . | . . . . . . Flight . | . . . . . . Utility 12 | 2 3 . 2 . 5 Device 5 | 1 2 . 1 . 1 Storage 4 | 1 1 . 1 . 1 Processor . | . . . . . . Hackware . | . . . . . . Protection 3 | . . . . . 3 Artifact . | . . . . . . Weapon 26 | 3 6 1 9 2 5 Energy Gun 19 | 2 4 . 8 1 4 Energy Cannon . | . . . . . . Ballistic Gun 2 | 1 1 . . . . Ballistic Cannon 1 | . 1 . . . . Launcher 2 | . . . . 1 1 Special Weapon . | . . . . . . Impact Weapon 2 | . . 1 1 . . Slashing Weapon . | . . . . . . Piercing Weapon . | . . . . . . Special Melee Weapon . | . . . . . . Unidentified Prototypes . | . . . . . . Parts Lost 16 | . 2 . . . 14 Power 2 | . 1 . . . 1 Propulsion 5 | . . . . . 5 Utility 3 | . . . . . 3 Weapon 6 | . 1 . . . 5 Highest Loss Streak 14 | . 1 . . . 14 To Critical Strikes 10 | . . . . . 10 Average Slot Usage (%) 98 | . 98 100 99 100 96 Engine 11 | . 13 14 7 11 10 Treads 29 | . 20 28 32 33 30 Leg 1 | . 7 . . . . Device 12 | . 13 14 11 11 11 Storage 11 | . 14 14 11 11 7 Energy Gun 26 | . 15 12 32 32 31 Ballistic Gun 1 | . 8 . . . . Ballistic Cannon 2 | . 2 14 . . . Naked Turns . | . . . . . . Heaviest Build 98 | 13 52 52 98 98 98 Greatest Support 60 | 20 40 40 60 60 60 Greatest Overweight (x) 1 | 1 1 1 1 1 1 Average Overweight (x) . | . . 1 . 1 . Largest Inventory Capacity 25 | 8 20 20 25 25 25 Average Capacity 20 | 7 16 20 24 25 17 Most Carried 25 | 8 20 20 25 25 25 Average Carried 19 | 6 14 19 23 24 15 Final Capacity 25 | 8 20 20 25 25 5 Final Carried 25 | 8 20 20 25 25 1 Class Distribution -------------------- 47% | Scavenger-Gunner 35% | Mutant 10% | Gunner 3% | Scavenger-Tank Dominant Class ---------------- Mutant | -10/Materials Mutant | -10/Mines Scavenger-Gunner | -9/Materials Scavenger-Gunner | -9/Mines Scavenger-Gunner | -9/Exiles Resources | -11 -10 -10 -9 -9 -9 ----------- Run | Yrd Mat Min Mat Min Exi Matter Collected 1230 | 334 210 101 339 50 196 Remotely . | . . . . . . Salvage Created 2299 | 249 550 67 1252 163 18 Parts 133 | 22 39 5 61 6 . Haulers Intercepted 5 | . 2 . 3 . . Recyclers Shooed 3 | 1 1 . 1 . . Parts Field Recycled . | . . . . . . Retrieved Matter . | . . . . . . Parts Self-Destructed . | . . . . . . Prevented . | . . . . . . Kills | -11 -10 -10 -9 -9 -9 ------- Run | Yrd Mat Min Mat Min Exi Combat Hostiles Destroyed 46 | . 11 4 21 4 6 Guns 36 | . 11 1 21 3 . Cannons 3 | . . 3 . . . AOE 7 | . . . . 1 6 Classes Destroyed 11 | 3 5 . 2 . 1 Worker 3 | 1 1 . 1 . . Builder 1 | . 1 . . . . Tunneler 6 | 6 . . . . . Hauler 5 | . 2 . 3 . . Recycler 3 | 1 1 . 1 . . Watcher 6 | . 2 . 4 . . Swarmer 8 | . 6 2 . . . Grunt 24 | . 5 2 15 2 . Brawler 3 | . . . 1 2 . Sentry 5 | . . . 5 . . Assembled 6 | . . . . . 6 Best Kill Streak 6 | 2 5 2 5 2 6 Combat Bots Only 6 | . 3 2 3 2 6 Max Kills in Single Turn 3 | 1 2 1 2 1 3 Gunslinging 1 | . . . 1 . . Exploded 3 | . . . . 1 3 Melee . | . . . . . . Uniques/NPCs Destroyed . | . . . . . . Combat | -11 -10 -10 -9 -9 -9 -------- Run | Yrd Mat Min Mat Min Exi Hostile Shots Fired 286 | . 93 22 56 4 111 Missed 75 | . 35 7 13 2 18 Damage Taken 2759 | . 516 151 521 24 1547 Core 545 | . 94 48 81 . 322 Absorbed by Shields . | . . . . . . Regen/Repaired (Parts) 12 | . 12 . . . . Core Remaining (%) 71 | 100 . 43 . . . Volleys Fired 207 | 18 61 9 61 6 52 Largest 3 | 2 2 2 3 3 3 Hottest 177 | 70 90 100 177 177 177 Shots Fired 458 | 36 120 18 170 14 100 Gun 431 | 36 118 9 161 13 94 Cannon 20 | . 2 9 9 . . Launcher 7 | . . . . 1 6 Special . | . . . . . . Kinetic 78 | 18 42 9 9 . . Thermal 373 | 18 78 9 161 13 94 Explosive 7 | . . . . 1 6 Electromagnetic . | . . . . . . Robot Hit Streak 14 | 4 8 3 14 9 14 Robot Miss Streak 6 | 3 6 6 3 1 4 Penetration Max . | . . . . . . Secondary Targets 3 | . 1 . 1 1 . Max Gunslinging Chain 1 | . 1 . 1 1 . Shots Hit Robots 279 | 20 63 14 109 12 61 Core Hits 133 | 9 27 16 50 8 23 Critical Kills . | . . . . . . Critical Parts Destroyed 1 | . 1 . . . . Critical Strikes 27 | 1 7 . 11 3 5 Burn 26 | 1 6 . 11 3 5 Destroy 1 | . 1 . . . . Melee Attacks 12 | . . 8 4 . . Impact 12 | . . 8 4 . . Slashing . | . . . . . . Piercing . | . . . . . . Sneak Attacks . | . . . . . . Combat Hostiles . | . . . . . . Follow-up Attacks . | . . . . . . Damage Inflicted 3556 | 243 856 190 1641 260 366 Guns 3029 | 243 856 104 1592 173 61 Cannons 135 | . . 86 49 . . Explosions 392 | . . . . 87 305 Melee . | . . . . . . Ramming . | . . . . . . Kinetic 514 | 92 287 86 49 . . Thermal 2650 | 151 569 104 1592 173 61 Explosive 392 | . . . . 87 305 Electromagnetic . | . . . . . . Impact . | . . . . . . Slashing . | . . . . . . Piercing . | . . . . . . Highest Corruption . | . . . . . . Average Corruption . | . . . . . . Corruption Purged . | . . . . . . Corruption Blocked . | . . . . . . Overload Shots . | . . . . . . Overflow Damage . | . . . . . . Projectiles . | . . . . . . Explosions . | . . . . . . Melee . | . . . . . . Knockbacks 1 | . . 1 . . . Impact . | . . . . . . Kinetic 1 | . . 1 . . . Secondary . | . . . . . . Self-Inflicted Damage . | . . . . . . Shots . | . . . . . . Rammed . | . . . . . . Targets Rammed . | . . . . . . Kicked . | . . . . . . Crushed . | . . . . . . Highest Temperature 439 | 38 135 234 348 223 439 Average Temperature 113 | 14 44 106 96 85 243 Received Heat Transfer 408 | . 102 45 249 12 . Effects 11 | . . . 3 . 8 Shutdowns 2 | . . . . . 2 Energy Bleed 2 | . . . . . 2 Interference 4 | . . . 3 . 1 Matter Decay 1 | . . . . . 1 Short Circuit 1 | . . . . . 1 Damage (minor) 1 | . . . . . 1 Siege Activations . | . . . . . . Robots Corrupted . | . . . . . . Combat Hostiles . | . . . . . . Parts Fried . | . . . . . . Impact Corruptions . | . . . . . . Robots Melted 1 | . . . 1 . . Combat Hostiles . | . . . . . . Parts Melted 27 | . 5 . 17 5 . Heat Transferred 8659 | 518 2003 130 4740 629 639 Parts Sabotaged . | . . . . . . Parts Stolen . | . . . . . . Parts Stripped . | . . . . . . Power Chain Reactions . | . . . . . . Alert | -11 -10 -10 -9 -9 -9 ------- Run | Yrd Mat Min Mat Min Exi Peak Influence 291 | 40 284 105 291 202 . Initial 88 | . 26 9 . 88 . Average 97 | 18 107 25 166 62 . Maximum Alert Level 1 | . 1 . 1 1 . Low Security (%) 80 | 100 78 100 68 80 . Level 1 19 | . 21 . 31 19 . Level 2 . | . . . . . . Level 3 . | . . . . . . Level 4 . | . . . . . . Level 5 . | . . . . . . High Security . | . . . . . . Max Security . | . . . . . . Squads Dispatched 5 | . 1 . 4 . . Investigation 2 | . . . 2 . . Extermination . | . . . . . . Reinforcement 3 | . 1 . 2 . . Assault . | . . . . . . Garrison . | . . . . . . Intercept . | . . . . . . Searches Triggered . | . . . . . . Construction Impeded . | . . . . . . Haulers Reinforced . | . . . . . . Active Scanning Responses . | . . . . . . Cargo Convoy Interrupts . | . . . . . . Stealth | -11 -10 -10 -9 -9 -9 --------- Run | Yrd Mat Min Mat Min Exi Distress Signals 5 | . 2 . 3 . . Communications Jammed . | . . . . . . Distress Signals . | . . . . . . Times Spotted 65 | . 18 5 30 4 8 Peak Tracking Total 9 | . 3 3 4 2 9 Tactical Retreats 1 | . . 1 . . . Traps | -11 -10 -10 -9 -9 -9 ------- Run | Yrd Mat Min Mat Min Exi Traps Triggered 1 | . . . 1 . . Indirectly . | . . . . . . Trap Hack Attempts . | . . . . . . Triggered . | . . . . . . Disarmed . | . . . . . . Reprogrammed . | . . . . . . Reused . | . . . . . . Traps Extracted . | . . . . . . Installed . | . . . . . . Triggered . | . . . . . . Machines | -11 -10 -10 -9 -9 -9 ---------- Run | Yrd Mat Min Mat Min Exi Machines Disabled 6 | . . . 2 . 4 Max in Single Turn 1 | . . . 1 . 1 Machines Repaired . | . . . . . . Machines Dismantled . | . . . . . . Machines Sabotaged . | . . . . . . Overloaded Fab Kills . | . . . . . . Hacking | -11 -10 -10 -9 -9 -9 --------- Run | Yrd Mat Min Mat Min Exi Machines Accessed 12 | . 6 . 5 . 1 Terminals 7 | . 4 . 3 . . Fabricators . | . . . . . . Repair Stations 2 | . 1 . 1 . . Recycling Units 2 | . 1 . 1 . . Scanalyzers . | . . . . . . Garrison Access . | . . . . . . Total Hacks 33 | . 20 . 12 . 1 Successful 17 | . 11 . 5 . 1 Failed 16 | . 9 . 7 . . Catastrophic 1 | . . . 1 . . Database Lockouts . | . . . . . . Manual 10 | . 9 . 1 . . Terminals 21 | . 15 . 6 . . Fabricators . | . . . . . . Repair Stations 8 | . 3 . 5 . . Recycling Units 3 | . 2 . 1 . . Scanalyzers . | . . . . . . Garrison Access . | . . . . . . Terminal Hacks 10 | . 7 . 2 . 1 Record 1 | . . . . . 1 Part Schematic 1 | . 1 . . . . Robot Analysis 1 | . 1 . . . . Prototype ID Bank 4 | . 3 . 1 . . Locate Traps 1 | . 1 . . . . Hauler Manifests 2 | . 1 . 1 . . Fabricator Hacks . | . . . . . . Repair Station Hacks 4 | . 2 . 2 . . Scan Component 3 | . 1 . 2 . . Repair 1 | . 1 . . . . Recycling Unit Hacks 1 | . 1 . . . . Retrieve Components 1 | . 1 . . . . Scanalyzer . | . . . . . . Garrison Access Hacks . | . . . . . . Unauthorized Hacks 2 | . 1 . 1 . . Terminals 1 | . 1 . . . . Botnet 1 | . 1 . . . . Fabricators . | . . . . . . Repair Stations . | . . . . . . Recycling Units 1 | . . . 1 . . Tunnel 1 | . . . 1 . . Scanalyzers . | . . . . . . Garrison Access . | . . . . . . Data Cores Recovered . | . . . . . . Used . | . . . . . . Hacking Detections 8 | . 5 . 3 . . Full Trace Events 1 | . . . 1 . . Feedback Events . | . . . . . . Feedback Blocked . | . . . . . . Robot Schematics Acquired . | . . . . . . Robots Built . | . . . . . . Authchips . | . . . . . . Time . | . . . . . . Total Robot Build Rating . | . . . . . . Part Schematics Acquired 1 | . 1 . . . . Parts Built . | . . . . . . Authchips . | . . . . . . Time . | . . . . . . Total Part Build Rating . | . . . . . . Parts Repaired 1 | . 1 . . . . Time 26 | . 26 . . . . Parts Recycled . | . . . . . . Recycled Matter . | . . . . . . Retrieved Matter . | . . . . . . Retrieved Components 10 | . 10 . . . . Parts Scanalyzed . | . . . . . . Part Schematics Acquired . | . . . . . . Parts Damaged . | . . . . . . Bothacking | -11 -10 -10 -9 -9 -9 ------------ Run | Yrd Mat Min Mat Min Exi Used RIF Installer . | . . . . . . Robots Hacked . | . . . . . . Non-combat . | . . . . . . Combat . | . . . . . . Robot Hacks Applied . | . . . . . . Relay Couplers Released . | . . . . . . Fabnet Peak Effective % . | . . . . . . Robots Rewired . | . . . . . . Allies Hacked . | . . . . . . Hacks Repelled . | . . . . . . Allies | -11 -10 -10 -9 -9 -9 -------- Run | Yrd Mat Min Mat Min Exi Total Allies . | . . . . . . Largest Group . | . . . . . . Highest-Rated Group . | . . . . . . Highest-Rated Ally . | . . . . . . Total Orders . | . . . . . . Ally Attacks . | . . . . . . Total Damage . | . . . . . . Kills . | . . . . . . Allies Corrupted . | . . . . . . Allies Melted . | . . . . . . Intel | -11 -10 -10 -9 -9 -9 ------- Run | Yrd Mat Min Mat Min Exi Robot Analysis Total 1 | . 1 . . . . Derelict Logs Recovered 2 | . . 1 . 1 . Drone Launches . | . . . . . . Drone Recoveries . | . . . . . . Exploration | -11 -10 -10 -9 -9 -9 ------------- Run | Yrd Mat Min Mat Min Exi Turns Passed 6959 | 248 1123 1065 1828 1158 1537 Spaces Moved 2701 | 137 418 341 640 469 696 Core 14 | 14 . . . . . Treads 2466 | . 320 341 640 469 696 Legs 221 | 123 98 . . . . Wheels . | . . . . . . Hover . | . . . . . . Flight . | . . . . . . Fastest Speed 50 | 50 120 240 160 240 160 Average Speed 210 | 114 204 240 224 240 186 Slowest Speed 240 | 120 240 240 240 240 240 Overloaded Moves . | . . . . . . Propulsion Burnouts . | . . . . . . Robots Hopped . | . . . . . . Cave-ins Triggered . | . . . . . . Exploration Rate (%) 54 | 7 60 59 52 87 59 Regions Visited 5 Branch Regions 3 Pre-discovered Areas 3 | . . . 1 1 1 Known Exits Taken 1 | . . . 1 . . Unknown Exits Taken 4 | 1 1 1 . 1 . Scrap Searched 3 | . . 1 . 2 . Spaces Dug 4 | . . . 4 . . Terrain Destroyed 35 | . . . 4 14 17 Melee 4 | . . . 4 . . Projectile . | . . . . . . AOE 31 | . . . . 14 17 Terrain Rammed . | . . . . . . Walls Destroyed . | . . . . . . Machines Disabled . | . . . . . . Actions | -11 -10 -10 -9 -9 -9 --------- Run | Yrd Mat Min Mat Min Exi Total 3573 | 189 576 558 902 491 857 Wait 425 | 19 38 194 124 9 41 Move 2696 | 136 417 340 639 468 696 Hop . | . . . . . . Pick Up 93 | 7 26 3 25 1 31 Fast Attach 26 | 8 6 . 7 . 5 Attach 14 | . 4 . 3 . 7 Detach 11 | 1 4 . 3 . 3 Swap 16 | . 2 1 8 4 1 Drop 73 | . 18 3 28 3 21 Fire 207 | 18 61 9 61 6 52 Melee 12 | . . 8 4 . . Ram . | . . . . . . Kick . | . . . . . . Crush . | . . . . . . Escape Stasis . | . . . . . . Rewire . | . . . . . . Trap . | . . . . . . Miscellaneous . | . . . . . . Route ------- -11/Scrapyard -10/Materials (discovered 2 exits: *Mat / [*Min]) -10/Mines -9/Materials (discovered 3 exits: [*Mat] / *Min x2) -9/Mines (discovered 2 exits: [*Mat] / *Exi) -9/Exiles (discovered 2 exits: [*Min x2]) History --------- Turn | Location | Event 8 | -11/Scrapyard | Discovered new exit (range 16) 249 | -11/Scrapyard | Entered Materials 300 | -10/Materials | Build established: Mutant 483 | -10/Materials | Discovered new exit (range 15) 1010 | -10/Materials | Repaired Seismic Detector 1280 | -10/Materials | Discovered new exit (range 14) 1372 | -10/Materials | Entered Mines 1706 | -10/Mines | Received a Rocket Launcher from a helpful Derelict 1836 | -10/Mines | Discovered new exit (range 12) 2068 | -10/Mines | Core integrity fell below 50% 2141 | -10/Mines | Excavation squad dispatched 2141 | -10/Mines | A large section of the Mines collapsed 2437 | -10/Mines | Entered Materials 2437 | -9/Materials | Evolved 2 slots: Propulsion x1, Weapon x1 2438 | -9/Materials | Identified exit to Mines 2726 | -9/Materials | Build established: Gunner 3459 | -9/Materials | Build established: Scavenger-Gunner 3828 | -9/Materials | Discovered new exit (range 9) 4265 | -9/Materials | Entered Mines 4319 | -9/Mines | Learned Materials terminal intel 4531 | -9/Mines | Discovered new exit (range 5) 4659 | -9/Mines | Learned location of Storage (-7) 5020 | -9/Mines | Deemed a non-threat by the Exiles lab entrance 5022 | -9/Mines | Discovered new exit (range 5) 5423 | -9/Mines | Entered Exiles 5457 | -9/Exiles | Discovered new exit (range 15) 5491 | -9/Exiles | Met 8R-AWN 5531 | -9/Exiles | Met EX-HEX 5608 | -9/Exiles | Met EX-BIN 5863 | -9/Exiles | Met EX-DEC 5875 | -9/Exiles | Learned location of Zion (-6) 5949 | -9/Exiles | Discovered new exit (range 14) 6703 | -9/Exiles | Attacked by the Exiles 6866 | -9/Exiles | Core integrity fell below 50% 6927 | -9/Exiles | Core integrity fell below 20% 6960 | -9/Exiles | Destroyed by 8R-AWN with 8R-AWN's Boregun Last Messages --------------- 06918_ HV Slug penetrates Earth. 06918_ Penetrated by HV Slug. 06918_ HV Slug penetrates Earth. 06922_ Penetrated by HV Slug. 06926_ Critical hit (Destroy). 06926_ Beam Rifle destroyed. 06930_ 8R-AWN suffers critical hit (Burn). 06930_ HV Slug penetrates Wall. 06930_ HV Slug penetrates Earth. 06935_ Penetrated by HV Slug. 06935_ HV Slug penetrates Wall. 06939_ Penetrated by HV Slug. 06940_ 8R-AWN suffers critical hit (Burn). 06943_ Penetrated by HV Slug. 06952_ Critical hit (Destroy). 06952_ Hvy. Ion Engine destroyed. 06952_ Penetrated by HV Slug. 06956_ Critical hit (Destroy). 06956_ Heat Sink destroyed. 06960_ Penetrated by HV Slug. Map ----- +----------------------------------------------------+ | ?????????????????????????????????????????????????? | | ?????????????????????????????????????????????????? | | ???????????????#####?????????????????????????????? | | ??????????????## ##????????????????????????????? | | ??????????????# = #????????????????????????????? | | ??????????????# !< #????????????????????????????? | | ??????????????# !!! ###??????????????????????????? | | ??????????????#! ! ! #??????????????????????????? | | ??????????????# ] !!##??????????????????????????? | | ??????????????## ] #???????????????????????????? | | ???????????????# ##??????????????????????????? | | ???????????????## #????????????#######???????? | | ????????????????# #######??????#!!! "#???????? | | ????????????????# #""##?????# "#???????? | | ????????????????## #?????# "#???????? | | ?????????????????##" ##???## ""#???????? | | ?????????????????#"" #####" ""#???????? | | ?????????????????#### ##" ""#???????? | | ????????????????????## #" #?????????? | | ?????????????????????#"## #?????????? | | ?????????????????????####### ##????????? | | ???????????????????????????### #????????? | | ?????????????????????######## "##??????? | | ?????????????????????# !!""" = ##?????? | | ?????????????????????# g] ###"" ######? | | ?????????????????????# @! !!! #?##" * "## | | ?????????????????# ; / !!##??#" | | ????????????# #; ;;#???#"# | | ??????????? #??# ##;;;;##;# #???#### | | ??????????? ???????#?# # ### # #??????### | | ????????????????????# ## ##?# # #????????### | | ????????????????????##?##??? ####??????????## | | ???????????????????????????? ???????????????# | | ???????????????????????????##????????????????# | | ??????????????????????????????????????????????# " | | ??????????????????????????????????????????????#" | | ?????????????????????????????????????????????#"" | | ?????????????????????????????????????????????#""" | | ?????????????????????????????????????????????""" | | ?????????????????????????????????????????????""" | | ??????????????????????????????????????????????" | | ??????????????????????????????????????????????"" | | ?????????????????????????????????????????????"" | | ??????????????????????????????????????????????"" | | ???????????????????????????????????????????????""" | | ???????????????????????????????????????????????? | | ?????????????????????????????????????????????????? | | ?????????????????????????????????????????????????? | | ?????????????????????????????????????????????????? | | ?????????????????????????????????????????????????? | +----------------------------------------------------+ Best States ------------- Heat Dissipation 48 Energy Generation 14 Energy Capacity 280 Matter Stores 300 Matter Capacity 300 Sight Range 16 Terrain Scan Density 10 Armor Coverage 150 Evasion (%) 55 Recoil Reduction 3 Item Schematics ----------------- Huge Storage Unit | -10/Materials | Hacked Robot Schematics ------------------ None Fabricated ------------ Nothing Alien Tech Used ----------------- None Achievements -------------- None Challenges ------------ None Game ------ Seed HelicalBombardmentArchive Manual? 0 Play Time 00:37:43 Cumulative 69.4 hours Start 2024.07.27 @ 22:56:38 End 2024.07.27 @ 23:31:39 Sessions 1 Manual Loads 0 Difficulty Rogue Special Mode None Game No. 45 Rogue 45 Adventurer 0 Explorer 0 Win Type - Total 1 Types 1/0/0/0/0/0/0/0/0 Lore% 40 Gallery% 55 Achievement% 41 Wizard Run 0 Options --------- Layout 2 ASCII 0 Keyboard 1 Movement Numpad Keybinds 0 Fullscreen 2 Font 24/Terminus Map View 50x49 Zoom Use 0% Tactical HUD 1 Map Filters NONE Filters NONE Steam 1 RUN: 5008b103-2919-4b74-833a-b17b11805720